bitfinex/quotes_BTCUSD_20250830
["timestamp","ask_amount","ask_price","bid_price","bid_amount"]
[1756584349713,0.2326589,109010.0,109000.0,0.00530757]
[1756584349918,0.55344978,109010.0,109000.0,0.00530757]
[1756584350293,0.55144978,109010.0,109000.0,0.00530757]
[1756584350654,0.55144978,109010.0,109000.0,0.00630757]
[1756584351520,0.55244978,109010.0,109000.0,0.00630757]
[1756584351892,0.55144978,109010.0,109000.0,0.00630757]
[1756584354326,0.54499141,109010.0,109000.0,0.00630757]
[1756584354496,0.55141031,109010.0,109000.0,0.00630757]
[1756584360923,0.55140748,109010.0,109000.0,0.00630757]
[1756584361950,0.2006671,109010.0,109000.0,0.1897938]
[1756584362154,0.54496118,109010.0,109000.0,0.1897938]
[1756584363606,0.52776348,109010.0,109000.0,0.1897938]
[1756584363951,0.54495137,109010.0,109000.0,0.3423138]
[1756584365443,0.36148197,109010.0,109000.0,0.3423138]
[1756584365804,0.54495137,109010.0,109000.0,0.3423138]
[1756584367509,0.20065729,109010.0,109000.0,0.3423138]
[1756584370152,0.20066222,109010.0,109000.0,0.3423138]
[1756584370926,0.20066222,109010.0,109000.0,0.1897938]
[1756584371108,0.20066222,109010.0,109000.0,0.3422738]
[1756584371713,0.5449563,109010.0,109000.0,0.3422738]
[1756584372129,0.20066222,109010.0,109000.0,0.3422738]
[1756584372332,0.20066222,109010.0,109000.0,0.1897938]
[1756584372562,0.20066222,109010.0,109000.0,0.3422738]
[1756584374310,0.20067172,109010.0,109000.0,0.1897938]
[1756584374512,0.20067172,109010.0,109000.0,0.3422738]
[1756584374787,0.5449658,109010.0,109000.0,0.3422738]
[1756584375407,0.55141758,109010.0,109000.0,0.3422738]
[1756584375791,0.55141758,109010.0,109000.0,0.1897938]
[1756584375961,0.55339758,109010.0,109000.0,0.15878757]
[1756584376164,0.55339758,109010.0,109000.0,0.15586114]
[1756584377116,0.55339758,109010.0,109000.0,0.15356757]
[1756584378148,0.2091035,109010.0,109000.0,0.49786165]
[1756584380813,0.2091035,109010.0,109000.0,0.50084165]
[1756584381433,0.20911111,109010.0,109000.0,0.50084165]
[1756584382803,0.20911111,109010.0,109000.0,0.50299165]
[1756584383005,0.20713111,109010.0,109000.0,0.50299165]
[1756584383641,0.20911111,109010.0,109000.0,0.50299165]
[1756584384882,0.1854494,109010.0,109000.0,0.50299165]
[1756584385084,0.20913606,109010.0,109000.0,0.50299165]
[1756584387309,0.20715606,109010.0,109000.0,0.50299165]
[1756584392363,0.20715606,109010.0,109000.0,0.15869757]
[1756584392660,0.02368666,109010.0,109000.0,0.50299165]
[1756584392875,0.1834694,109010.0,109000.0,0.50299165]
[1756584401988,0.1834694,109010.0,109000.0,0.50287165]
[1756584404693,0.20716374,109010.0,109000.0,0.50287165]
[1756584406193,0.20716414,109010.0,109000.0,0.50287165]
[1756584408492,0.55145822,109010.0,109000.0,0.15857757]
[1756584408690,0.55145822,109010.0,109000.0,0.16087114]
[1756584410032,0.5514585,109010.0,109000.0,0.15857757]
[1756584414503,0.5534385,109010.0,109000.0,0.15857757]
[1756584415314,0.5514585,109010.0,109000.0,0.15857757]
[1756584416206,0.5514585,109010.0,109000.0,0.16087114]
[1756584416802,0.53422596,109010.0,109000.0,0.16087114]
[1756584417030,0.55145926,109010.0,109000.0,0.16087114]
[1756584417700,0.54499678,109010.0,109000.0,0.16087114]
[1756584417926,0.55145926,109010.0,109000.0,0.00851114]
[1756584418138,0.21175518,109010.0,109000.0,0.15344757]
[1756584418371,0.55604926,109010.0,109000.0,0.15344757]
[1756584418527,0.55344926,109010.0,109000.0,0.15344757]
[1756584419359,0.55344854,109010.0,109000.0,0.15344757]
[1756584419578,0.55344854,109010.0,109000.0,0.18103757]
[1756584420389,0.55344854,109010.0,109000.0,0.18627757]
[1756584424483,0.98863894,109010.0,109000.0,0.00108757]
[1756584424742,1.26019182,109010.0,109000.0,0.15344757]
[1756584425085,1.28778382,109010.0,109000.0,0.15344757]
[1756584425488,0.94348974,109010.0,109000.0,0.15344757]
[1756584426058,1.28778382,109010.0,109000.0,0.15344757]
[1756584426318,1.27054796,109010.0,109000.0,0.15344757]
[1756584426547,0.94347843,109010.0,109000.0,0.00108757]
[1756584426941,1.09583843,109010.0,109000.0,0.00108757]
[1756584427756,1.18413475,109010.0,109000.0,0.00108757]
[1756584427925,1.09583843,109010.0,109000.0,0.00108757]
[1756584428127,1.09323843,109010.0,109000.0,0.00108757]
[1756584428324,0.74894435,109010.0,109000.0,0.00420757]
[1756584428524,1.09323843,109010.0,109000.0,0.00420757]
[1756584428930,0.94087843,109010.0,109000.0,0.00420757]
[1756584429131,0.94087843,109010.0,109000.0,0.00632757]
[1756584430136,1.28517251,109010.0,109000.0,0.00632757]
[1756584432876,0.91903923,109010.0,109000.0,0.00632757]
[1756584433465,0.57474515,109010.0,109000.0,0.00632757]
[1756584433662,0.91903923,109010.0,109000.0,0.00632757]
[1756584436590,0.92101923,109010.0,109000.0,0.00632757]
[1756584436793,0.92100295,109010.0,109000.0,0.00632757]
[1756584437851,0.9210032,109010.0,109000.0,0.00632757]
[1756584438763,0.9190232,109010.0,109000.0,0.00862114]
[1756584438975,0.9190232,109010.0,109000.0,0.00632757]
[1756584439192,0.9210032,109010.0,109000.0,0.15880757]
[1756584441045,0.9190232,109010.0,109000.0,0.15880757]
[1756584441249,0.5790232,109010.0,109000.0,0.15880757]
[1756584443860,0.5790232,109010.0,109000.0,0.16110114]
[1756584447499,0.57902801,109010.0,109000.0,0.16110114]
[1756584453538,0.58100801,109010.0,109000.0,0.16110114]
[1756584457610,0.58100801,109010.0,109000.0,0.00862114]
[1756584457810,0.58100801,109010.0,109000.0,0.15582114]
[1756584458016,0.55733548,109010.0,109000.0,0.15582114]
[1756584458218,0.58100834,109010.0,109000.0,0.15582114]
[1756584460274,0.23473426,109010.0,109000.0,0.00845114]
[1756584460474,0.57902834,109010.0,109000.0,0.16089114]
[1756584460688,0.58100834,109010.0,109000.0,0.16089114]
[1756584468669,0.5810217,109010.0,109000.0,0.16089114]
[1756584472364,0.5810254,109010.0,109000.0,0.16089114]
[1756584477037,0.23673132,109010.0,109000.0,0.16089114]
[1756584477282,0.5810254,109010.0,109000.0,0.16089114]
[1756584477607,0.5810254,109010.0,109000.0,0.00845114]
[1756584477840,0.58102636,109010.0,109000.0,0.16089114]
[1756584478294,0.58102636,109010.0,109000.0,0.15787114]
[1756584478706,0.58102636,109010.0,109000.0,0.15582114]
[1756584479349,0.58102693,109010.0,109000.0,0.15582114]
[1756584479910,0.58102698,109010.0,109000.0,0.15582114]
[1756584480275,0.58102698,109010.0,109000.0,0.15878114]
[1756584480913,0.2091409,109010.0,109000.0,0.16077114]
[1756584481086,0.55343498,109010.0,109000.0,0.16077114]
[1756584485263,0.55343613,109010.0,109000.0,0.16077114]
[1756584488682,0.55343737,109010.0,109000.0,0.16077114]
[1756584489318,0.55343753,109010.0,109000.0,0.16077114]
[1756584492118,0.55343753,109010.0,109000.0,0.00833114]
[1756584492324,0.55343753,109010.0,109000.0,0.16073114]
[1756584499404,0.55343937,109010.0,109000.0,0.16073114]
[1756584499609,0.36899997,109010.0,109000.0,0.16073114]
[1756584499761,0.55246937,109010.0,109000.0,0.16073114]
[1756584507586,0.55246937,109010.0,109000.0,0.00833114]
[1756584507803,0.55246937,109010.0,109000.0,0.15348757]
[1756584508258,0.55246937,109010.0,109000.0,0.00108757]
[1756584508469,0.89676345,109010.0,109000.0,0.00108757]
[1756584508686,0.89739345,109010.0,109000.0,0.00108757]
[1756584509023,0.2562513,109010.0,109000.0,0.00108757]
[1756584509251,0.60054538,109010.0,109000.0,0.00108757]
[1756584509435,0.58069137,109010.0,109000.0,0.00108757]
[1756584509573,0.60054006,109010.0,109000.0,0.00108757]
[1756584509789,0.57684417,109010.0,109000.0,0.00108757]
[1756584510009,0.59990559,109010.0,109000.0,0.00108757]
[1756584512265,0.60053559,109010.0,109000.0,0.00108757]
[1756584512438,0.94482967,109010.0,109000.0,0.00108757]
[1756584513406,0.93836311,109010.0,109000.0,0.00108757]
[1756584513627,0.94482243,109010.0,109000.0,0.00108757]
[1756584513769,1.09734243,109010.0,109000.0,0.00108757]
[1756584514287,1.43734243,109010.0,109000.0,0.00108757]
[1756584514466,1.46071776,109010.0,109000.0,0.00108757]
[1756584517658,4.08874334,109010.0,109000.0,0.00108757]
[1756584517893,4.11355929,109010.0,109000.0,0.00108757]
[1756584518334,4.08882334,109010.0,109000.0,0.00108757]
[1756584518539,4.06544801,109010.0,109000.0,0.00108757]
[1756584518736,4.06544801,109010.0,109000.0,8.757e-05]
[1756584518958,4.06644801,109010.0,109000.0,8.757e-05]
[1756584519465,4.15474433,109010.0,109000.0,8.757e-05]
[1756584520357,4.13106015,109010.0,109000.0,8.757e-05]
[1756584520602,4.15472027,109010.0,109000.0,8.757e-05]
[1756584521382,4.169082,109010.0,109000.0,8.757e-05]
[1756584522425,4.14192324,109010.0,109000.0,8.757e-05]
[1756584522634,4.50959265,109010.0,109000.0,8.757e-05]
[1756584523594,4.53675141,109010.0,109000.0,8.757e-05]
[1756584524183,4.52238968,109010.0,109000.0,8.757e-05]
[1756584527292,4.53675144,109010.0,109000.0,8.757e-05]
[1756584527971,4.53612144,109010.0,109000.0,8.757e-05]
[1756584528228,4.53675144,109010.0,109000.0,8.757e-05]
[1756584529742,4.5367455,109010.0,109000.0,8.757e-05]
[1756584530973,4.51309132,109010.0,109000.0,8.757e-05]
[1756584531197,4.53673212,109010.0,109000.0,8.757e-05]
[1756584532318,4.4478058,109010.0,109000.0,8.757e-05]
[1756584532544,4.6319158,109010.0,109000.0,8.757e-05]
[1756584532694,4.07555032,109010.0,109000.0,8.757e-05]
[1756584532913,4.6302808,109010.0,109000.0,8.757e-05]
[1756584534598,4.4776808,109010.0,109000.0,8.757e-05]
[1756584534803,4.6304408,109010.0,109000.0,8.757e-05]
[1756584535012,4.71873712,109010.0,109000.0,8.757e-05]
[1756584536409,4.70437536,109010.0,109000.0,8.757e-05]
[1756584538190,4.70437917,109010.0,109000.0,8.757e-05]
[1756584538624,4.74498183,109010.0,109000.0,8.757e-05]
[1756584539465,4.74494183,109010.0,109000.0,8.757e-05]
[1756584539646,4.75930427,109010.0,109000.0,8.757e-05]
[1756584541297,4.73565966,109010.0,109000.0,8.757e-05]
[1756584541443,4.75931387,109010.0,109000.0,8.757e-05]
[1756584542167,4.75931343,109010.0,109000.0,8.757e-05]
[1756584542368,4.78412938,109010.0,109000.0,8.757e-05]
[1756584543688,4.76976694,109010.0,109000.0,8.757e-05]
[1756584544381,4.77565881,109010.0,109000.0,8.757e-05]
[1756584544595,4.80327295,109010.0,109000.0,8.757e-05]
[1756584546912,4.81763552,109010.0,109000.0,8.757e-05]
[1756584547479,4.79281957,109010.0,109000.0,8.757e-05]
[1756584551316,4.7691658,109010.0,109000.0,8.757e-05]
[1756584551542,4.7928432,109010.0,109000.0,8.757e-05]
[1756584551745,4.79283209,109010.0,109000.0,8.757e-05]
[1756584551942,4.7928321,109010.0,109000.0,8.757e-05]
[1756584554130,4.7928321,109010.0,109000.0,0.00333757]
[1756584554692,4.7928321,109010.0,109000.0,8.757e-05]
[1756584555045,4.7928321,109010.0,109000.0,0.00333757]
[1756584562077,4.78637462,109010.0,109000.0,0.00333757]
[1756584562312,4.79284889,109010.0,109000.0,0.00333757]
[1756584562637,4.79285079,109010.0,109000.0,0.00333757]
[1756584567152,4.70439447,109010.0,109000.0,0.00530757]
[1756584567381,3.67151223,109010.0,109000.0,0.00530757]
[1756584567565,4.70439447,109010.0,109000.0,0.00530757]
[1756584567942,4.66379181,109010.0,109000.0,0.00530757]
[1756584568289,4.31949773,109010.0,109000.0,0.00530757]
[1756584569103,4.29580163,109010.0,109000.0,0.00530757]
[1756584569308,4.31950338,109010.0,109000.0,0.00530757]
[1756584572033,4.16694338,109010.0,109000.0,0.00530757]
[1756584572204,4.29616805,109010.0,109000.0,0.00530757]
[1756584572650,4.27893041,109010.0,109000.0,0.00530757]
[1756584572949,4.29616779,109010.0,109000.0,0.00530757]
[1756584573712,4.29616677,109010.0,109000.0,0.00530757]
[1756584577673,4.2961654,109010.0,109000.0,0.00530757]
[1756584579799,4.29616474,109010.0,109000.0,0.00530757]
[1756584580575,4.75310362,109010.0,109000.0,8.757e-05]
[1756584580850,4.75310362,109010.0,109000.0,0.00330757]
[1756584581213,4.75310362,109010.0,109000.0,8.757e-05]
[1756584583376,4.73586828,109010.0,109000.0,8.757e-05]
[1756584583593,4.75310332,109010.0,109000.0,8.757e-05]
[1756584583846,4.79526428,109010.0,109000.0,0.00330757]
[1756584584354,4.7952644,109010.0,109000.0,0.00330757]
[1756584589865,4.79526444,109010.0,109000.0,0.00330757]
[1756584590071,4.4470321,109010.0,109000.0,0.00330757]
[1756584590495,4.35873578,109010.0,109000.0,0.00330757]
[1756584594253,4.35873625,109010.0,109000.0,0.00330757]
[1756584597829,4.69873681,109010.0,109000.0,0.00330757]
[1756584598065,4.65657585,109010.0,109000.0,0.00330757]
[1756584598709,4.6970049,109010.0,109000.0,0.00330757]
[1756584600088,4.70523724,109010.0,109000.0,0.00330757]
[1756584601747,4.73174808,109010.0,109000.0,0.00330757]
[1756584603765,4.73174904,109010.0,109000.0,0.00330757]
[1756584604950,4.73174904,109010.0,109000.0,0.00544757]
[1756584606483,4.57914904,109010.0,109000.0,0.00544757]
[1756584606694,4.73182904,109010.0,109000.0,0.00544757]
[1756584609006,4.57914904,109010.0,109000.0,0.00544757]
[1756584609209,4.20834412,109010.0,109000.0,0.00544757]
[1756584609413,4.33663564,109010.0,109000.0,0.00544757]
[1756584611450,4.18399564,109010.0,109000.0,0.00544757]
[1756584611730,4.33671564,109010.0,109000.0,0.00544757]
[1756584613748,4.18399564,109010.0,109000.0,0.00544757]
[1756584613972,4.33667564,109010.0,109000.0,0.00544757]
[1756584614399,4.33021114,109010.0,109000.0,0.00544757]
[1756584614610,4.33667456,109010.0,109000.0,0.00544757]
[1756584615006,4.18399456,109010.0,109000.0,0.00544757]
[1756584615305,4.33667456,109010.0,109000.0,0.00544757]
[1756584616347,4.18399456,109010.0,109000.0,0.00544757]
[1756584616579,4.33667456,109010.0,109000.0,0.00544757]
[1756584617140,4.36149195,109010.0,109000.0,0.00544757]
[1756584617358,4.20881195,109010.0,109000.0,0.00544757]
[1756584617562,4.36145195,109010.0,109000.0,0.00544757]
[1756584617724,4.34708938,109010.0,109000.0,0.00544757]
[1756584618341,4.4353857,109010.0,109000.0,0.00330757]
[1756584618541,4.75206564,109010.0,109000.0,0.00330757]
[1756584619460,4.77641412,109010.0,109000.0,0.00330757]
[1756584619780,4.80402826,109010.0,109000.0,0.00330757]
[1756584619962,4.77921087,109010.0,109000.0,0.00330757]
[1756584620363,4.77921087,109010.0,109000.0,8.757e-05]
[1756584620884,4.79357368,109010.0,109000.0,8.757e-05]
[1756584621086,4.79357368,109010.0,109000.0,0.00309757]
[1756584621666,0.18351991,108980.0,108970.0,0.004079]
[1756584622030,0.00424169,108970.0,108960.0,0.34464361]
[1756584622330,0.57264419,108980.0,108970.0,0.027598]
[1756584622531,0.57910664,108980.0,108970.0,0.029738]
[1756584622868,0.59295423,108980.0,108970.0,0.029738]
[1756584623393,0.5930018,108980.0,108970.0,0.031738]
[1756584623822,0.5930018,108980.0,108970.0,0.038748]
[1756584624923,0.56930615,108980.0,108970.0,0.038748]
[1756584625135,0.59300195,108980.0,108970.0,0.038748]
[1756584625544,0.56930615,108980.0,108970.0,0.038748]
[1756584625720,0.90969911,108980.0,108970.0,0.038748]
[1756584629371,0.56540503,108980.0,108970.0,0.038748]
[1756584631302,1.40431911,108980.0,108970.0,0.006]
[1756584631518,4.05931716,108980.0,108970.0,0.006]
[1756584632111,4.06193716,108980.0,108970.0,0.006]
[1756584632309,4.61065006,108980.0,108970.0,0.006]
[1756584632533,4.70218932,108980.0,108950.0,0.00301]
[1756584632799,0.87214175,108960.0,108950.0,0.00301]
[1756584632958,0.89583763,108960.0,108950.0,0.00301]
[1756584633128,0.89583763,108960.0,108950.0,0.00515]
[1756584633634,0.92344163,108960.0,108950.0,0.00515]
[1756584633823,1.07887163,108960.0,108950.0,0.00515]
[1756584634480,1.07887163,108960.0,108950.0,0.00615]
[1756584635197,1.07887163,108960.0,108950.0,0.00815]
[1756584635621,1.06162716,108960.0,108950.0,0.00815]
[1756584635763,1.07883093,108960.0,108950.0,0.00815]
[1756584640592,1.07883093,108960.0,108950.0,0.003]
[1756584641576,1.07883093,108960.0,108950.0,0.00601]
[1756584641921,1.07883093,108960.0,108950.0,0.00815]
[1756584642874,3.65875893,108960.0,108950.0,0.00815]
[1756584644953,2.97017077,108960.0,108950.0,0.00815]
[1756584645098,3.50531893,108960.0,108950.0,0.00815]
[1756584645316,3.65871893,108960.0,108950.0,0.00815]
[1756584645959,3.65871893,108960.0,108950.0,0.003]
[1756584646182,3.65226752,108960.0,108950.0,0.003]
[1756584646316,3.65867604,108960.0,108950.0,0.00601]
[1756584646527,3.65867604,108960.0,108950.0,0.003]
[1756584646748,3.65867604,108960.0,108950.0,0.00815]
[1756584649223,0.23476988,108960.0,108950.0,0.00815]
[1756584649428,0.57262425,108960.0,108950.0,0.00815]
[1756584650040,0.57262535,108960.0,108950.0,0.00815]
[1756584650502,0.55545167,108960.0,108950.0,0.00815]
[1756584651501,0.89974575,108960.0,108950.0,0.00815]
[1756584653145,0.91692193,108960.0,108950.0,0.00815]
[1756584654316,0.6736182,108960.0,108950.0,0.00815]
[1756584654529,0.85717179,108960.0,108950.0,0.00815]
[1756584654726,0.90618961,108960.0,108950.0,0.00815]
[1756584656156,0.90816961,108960.0,108950.0,0.00815]
[1756584657927,0.21958145,108960.0,108950.0,0.00815]
[1756584658150,0.90816961,108960.0,108950.0,0.00815]
[1756584659498,0.88056461,108960.0,108950.0,0.00815]
[1756584659713,0.88057264,108960.0,108950.0,0.00815]
[1756584660338,0.87859264,108960.0,108950.0,0.20815]
[1756584660558,0.19000448,108960.0,108950.0,0.00815]
[1756584660772,0.53429856,108960.0,108950.0,0.01044463]
[1756584661458,0.19000448,108960.0,108950.0,0.01044463]
[1756584661672,0.53429856,108960.0,108950.0,0.00815]
[1756584663051,0.53627856,108960.0,108950.0,0.00815]
[1756584663844,0.53525261,108960.0,108950.0,0.01044463]
[1756584664397,0.55509943,108960.0,108950.0,0.01044463]
[1756584665373,0.55311943,108960.0,108950.0,0.01044463]
[1756584666543,0.57034671,108960.0,108950.0,0.01044463]
[1756584667698,0.57232671,108960.0,108950.0,0.00529463]
[1756584668461,0.57232671,108960.0,108950.0,0.01054463]
[1756584669377,0.56690114,108960.0,108950.0,0.01054463]
[1756584669735,0.56492095,108960.0,108950.0,0.01054463]
[1756584672225,0.90921503,108960.0,108950.0,0.01054463]
[1756584672984,0.90921382,108960.0,108950.0,0.01054463]
[1756584674173,0.56491974,108960.0,108950.0,0.01054463]
[1756584675910,0.57137987,108960.0,108950.0,0.01054463]
[1756584677515,0.57335987,108960.0,108950.0,0.01054463]
[1756584677689,0.22906579,108960.0,108950.0,0.01054463]
[1756584678017,0.57335987,108960.0,108950.0,0.01054463]
[1756584679900,0.55613706,108960.0,108950.0,0.01054463]
[1756584680107,0.5733706,108960.0,108950.0,0.01054463]
[1756584680547,0.57337059,108960.0,108950.0,0.01054463]
[1756584680840,0.91766456,108960.0,108950.0,0.01054463]
[1756584681281,0.57337048,108960.0,108950.0,0.01054463]
[1756584681487,0.91766456,108960.0,108950.0,0.01054463]
[1756584682094,0.91766456,108960.0,108950.0,0.00529463]
[1756584682453,0.91766456,108960.0,108950.0,0.00841463]
[1756584684164,0.2290764,108960.0,108950.0,0.01047463]
[1756584684367,0.57337048,108960.0,108950.0,0.01047463]
[1756584687629,0.55352366,108960.0,108950.0,0.01047463]
[1756584687806,0.5733762,108960.0,108950.0,0.01047463]
[1756584690400,0.56691375,108960.0,108950.0,0.01047463]
[1756584690605,0.57337672,108960.0,108950.0,0.01047463]
[1756584690957,0.57337672,108960.0,108950.0,0.19404507]
[1756584691145,0.57337672,108960.0,108950.0,0.19175044]
[1756584691434,0.57337673,108960.0,108950.0,0.19175044]
[1756584693452,0.22908265,108960.0,108950.0,0.19175044]
[1756584693592,0.57337673,108960.0,108950.0,0.19175044]
[1756584695318,0.57337673,108960.0,108950.0,0.003]
[1756584695526,0.91767081,108960.0,108950.0,0.00529463]
[1756584695968,0.91767081,108960.0,108950.0,0.003]
[1756584696175,0.92029081,108960.0,108950.0,0.003]
[1756584696601,1.07381081,108960.0,108950.0,0.003]
[1756584697602,1.07381056,108960.0,108950.0,0.003]
[1756584698002,0.3852224,108960.0,108950.0,0.003]
[1756584698212,1.07381056,108960.0,108950.0,0.003]
[1756584701216,1.07380534,108960.0,108950.0,0.003]
[1756584701508,1.07118534,108960.0,108950.0,0.003]
[1756584706427,0.91766534,108960.0,108950.0,0.003]
[1756584706617,1.07122534,108960.0,108950.0,0.003]
[1756584708237,1.05399548,108960.0,108950.0,0.003]
[1756584708451,1.0712232,108960.0,108950.0,0.003]
[1756584710886,0.9176632,108960.0,108950.0,0.003]
[1756584711114,1.0711832,108960.0,108950.0,0.003]
[1756584711600,1.05395548,108960.0,108950.0,0.003]
[1756584711806,1.04749429,108960.0,108950.0,0.003]
[1756584711952,1.07118211,108960.0,108950.0,0.003]
[1756584712616,1.07380211,108960.0,108950.0,0.003]
[1756584714095,1.09815059,108960.0,108950.0,0.003]
[1756584715649,1.09814631,108960.0,108950.0,0.003]
[1756584715843,3.67807431,108960.0,108950.0,0.003]
[1756584716060,4.38330721,108960.0,108950.0,0.003]
[1756584716274,4.59160289,108960.0,108950.0,0.003]
[1756584716477,4.61921189,108960.0,108950.0,0.003]
[1756584719734,4.46569189,108960.0,108950.0,0.003]
[1756584719947,4.61917189,108960.0,108950.0,0.003]
[1756584720153,4.63353966,108960.0,108950.0,0.003]
[1756584720367,4.72183598,108960.0,108950.0,0.003]
[1756584720585,0.54450926,108950.0,108940.0,0.0002]
[1756584720824,4.58693981,108950.0,108940.0,0.0002]
[1756584721013,4.70514814,108950.0,108940.0,0.0002]
[1756584721277,4.73819877,108950.0,108940.0,0.0002]
[1756584721519,4.57927279,108950.0,108940.0,0.0002]
[1756584721738,4.73281495,108950.0,108940.0,0.0002]
[1756584721949,4.73281495,108950.0,108940.0,0.0012]
[1756584722182,4.73279896,108950.0,108940.0,0.0012]
[1756584722398,4.73279885,108950.0,108940.0,0.0012]
[1756584723498,4.57923885,108950.0,108940.0,0.0012]
[1756584723699,4.73279885,108950.0,108940.0,0.0012]
[1756584724352,4.74716883,108950.0,108940.0,1e-08]
[1756584724581,4.78021946,108950.0,108940.0,1e-08]
[1756584725007,3.59377722,108950.0,108940.0,1e-08]
[1756584725246,4.78021946,108950.0,108940.0,1e-08]
[1756584726341,4.74716883,108950.0,108940.0,1e-08]
[1756584730705,4.59360883,108950.0,108940.0,1e-08]
[1756584730860,3.56072659,108950.0,108940.0,1e-08]
[1756584731071,0.20452611,108940.0,108930.0,0.0002]
[1756584731281,4.19791014,108940.0,108930.0,0.0002]
[1756584731465,4.19988014,108940.0,108930.0,0.00344]
[1756584731665,4.22749614,108940.0,108930.0,0.00344]
[1756584732043,4.22813614,108940.0,108930.0,0.00344]
[1756584732251,4.22813614,108940.0,108930.0,0.00542]
[1756584732252,4.22609595,108940.0,108930.0,0.00542]
[1756584732452,4.22709595,108940.0,108930.0,0.0058967]
[1756584732568,4.22909595,108940.0,108930.0,0.0058967]
[1756584732985,4.23106438,108940.0,108930.0,0.0058967]
[1756584734223,4.57106438,108940.0,108930.0,0.0058967]
[1756584734428,4.6593607,108940.0,108930.0,0.0058967]
[1756584735103,3.62450846,108940.0,108930.0,0.0058967]
[1756584735263,4.6593607,108940.0,108930.0,0.0058967]
[1756584735900,4.41485438,108940.0,108930.0,0.2058967]
[1756584736105,4.56905438,108940.0,108930.0,0.0058967]
[1756584737266,4.56913438,108940.0,108930.0,0.0058967]
[1756584737467,4.56909438,108940.0,108930.0,0.0058967]
[1756584737708,4.58346468,108940.0,108930.0,0.0058967]
[1756584739866,4.42922468,108940.0,108930.0,0.0058967]
[1756584740026,4.58342468,108940.0,108930.0,0.0058967]
[1756584741556,4.42922468,108940.0,108930.0,0.0058967]
[1756584741731,4.58342468,108940.0,108930.0,0.0058967]
[1756584742341,4.60820043,108940.0,108930.0,0.0058967]
[1756584742744,4.59106679,108940.0,108930.0,0.0058967]
[1756584742943,4.60822906,108940.0,108930.0,0.0058967]
[1756584743327,4.60823109,108940.0,108930.0,0.0058967]
[1756584743765,4.43309227,108940.0,108930.0,0.0058967]
[1756584743979,4.58721227,108940.0,108930.0,0.0058967]
[1756584745261,4.58919227,108940.0,108930.0,0.0058967]
[1756584746108,4.58717227,108940.0,108930.0,0.0058967]
[1756584746334,4.21810244,108940.0,108930.0,0.0058967]
[1756584747236,4.06402244,108940.0,108930.0,0.0058967]
[1756584747564,4.24283819,108940.0,108930.0,0.0058967]
[1756584748567,3.55425003,108940.0,108930.0,0.0058967]
[1756584748714,4.24283819,108940.0,108930.0,0.0058967]
[1756584750603,4.0592509,108940.0,108930.0,0.0058967]
[1756584750804,4.21806244,108940.0,108930.0,0.0058967]
[1756584753478,4.21811812,108940.0,108930.0,0.0058967]
[1756584760142,4.22009812,108940.0,108930.0,0.0058967]
[1756584760559,4.22009604,108940.0,108930.0,0.0058967]
[1756584762760,4.22009604,108940.0,108930.0,0.0006767]
[1756584762761,4.22271604,108940.0,108930.0,0.0006767]
[1756584762957,4.56701012,108940.0,108930.0,0.0006767]
[1756584763564,4.56439012,108940.0,108930.0,0.0006767]
[1756584763969,4.54718615,108940.0,108930.0,0.0006767]
[1756584764191,4.56438558,108940.0,108930.0,0.0057567]
[1756584764499,4.2200915,108940.0,108930.0,0.0057567]
[1756584765885,3.37548334,108940.0,108930.0,0.0057567]
[1756584766080,4.2179515,108940.0,108930.0,0.0057567]
[1756584766450,4.1759652,108940.0,108930.0,0.0057567]
[1756584767194,4.16951542,108940.0,108930.0,0.0057567]
[1756584767408,4.17396625,108940.0,108930.0,0.0057567]
[1756584767556,4.17496625,108940.0,108930.0,0.0057567]
[1756584767765,4.17694625,108940.0,108930.0,0.0057567]
[1756584768205,4.17594625,108940.0,108930.0,0.0057567]
[1756584772377,4.17396625,108940.0,108930.0,0.0057567]
[1756584772949,4.17593625,108940.0,108930.0,0.0057567]
[1756584773357,4.16948542,108940.0,108930.0,0.0057567]
[1756584773557,4.17594143,108940.0,108930.0,0.0057567]
[1756584774598,4.16948995,108940.0,108930.0,0.0057567]
[1756584774804,4.175943,108940.0,108930.0,0.0057567]
[1756584775189,4.17594297,108940.0,108930.0,0.0057567]
[1756584775551,4.17594356,108940.0,108930.0,0.0057567]
[1756584780080,4.02206356,108940.0,108930.0,0.0057567]
[1756584780307,0.7515774,108940.0,108930.0,0.0057567]
[1756584780545,0.9053774,108940.0,108930.0,0.0057567]
[1756584780732,1.59396556,108940.0,108930.0,0.0057567]
[1756584780929,1.24963956,108940.0,108930.0,0.0057567]
[1756584781336,1.59393364,108940.0,108930.0,0.0057567]
[1756584782318,1.59293364,108940.0,108930.0,0.0057567]
[1756584782758,1.43913364,108940.0,108930.0,0.00905175]
[1756584782919,1.24879956,108940.0,108930.0,0.00905175]
[1756584783496,1.07501894,108940.0,108930.0,0.19265589]
[1756584783673,1.07501894,108940.0,108930.0,0.19036084]
[1756584783873,0.55143165,108940.0,108930.0,0.21796784]
[1756584784081,0.52777408,108940.0,108930.0,0.21796784]
[1756584784282,0.55142806,108940.0,108930.0,0.21796784]
[1756584784492,0.72856427,108940.0,108930.0,0.21796784]
[1756584784694,0.72856427,108940.0,108930.0,0.21896784]
[1756584787935,0.54497698,108940.0,108930.0,0.21896784]
[1756584788381,0.72856427,108940.0,108930.0,0.21896784]
[1756584789103,0.72856427,108940.0,108930.0,0.37284784]
[1756584793920,0.38427019,108940.0,108930.0,0.37284784]
[1756584794065,0.72856427,108940.0,108930.0,0.37284784]
[1756584794854,0.72854272,108940.0,108930.0,0.37284784]
[1756584795228,0.71136137,108940.0,108930.0,0.37284784]
[1756584795432,0.72854273,108940.0,108930.0,0.21896784]
[1756584795680,0.72854273,108940.0,108930.0,0.37272784]
[1756584802066,0.73052273,108940.0,108930.0,0.37264784]
[1756584802268,0.72854273,108940.0,108930.0,0.37264784]
[1756584802464,0.54495544,108940.0,108930.0,0.37264784]
[1756584805438,0.54496233,108940.0,108930.0,0.37264784]
[1756584806348,0.20066825,108940.0,108930.0,0.37264784]
[1756584806553,0.20066825,108940.0,108930.0,0.21388784]
[1756584806554,0.73052962,108940.0,108930.0,0.21388784]
[1756584806758,0.73052962,108940.0,108930.0,0.1838837]
[1756584807107,0.73052962,108940.0,108930.0,0.37064784]
[1756584807973,0.73052962,108940.0,108930.0,0.0334437]
[1756584808173,1.0748237,108940.0,108930.0,0.03257875]
[1756584808397,1.0748237,108940.0,108930.0,0.18617875]
[1756584808595,1.0748237,108940.0,108930.0,0.1838837]
[1756584808942,1.05763545,108940.0,108930.0,0.1838837]
[1756584809140,1.07483168,108940.0,108930.0,0.1838837]
[1756584809920,1.07745168,108940.0,108930.0,0.1838837]
[1756584810252,0.38886352,108940.0,108930.0,0.1838837]
[1756584810461,1.07745168,108940.0,108930.0,0.1838837]
[1756584811908,1.08390338,108940.0,108930.0,0.1838837]
[1756584812532,1.0812848,108940.0,108930.0,0.1838837]
[1756584815995,1.05763545,108940.0,108930.0,0.1838837]
[1756584816232,1.081304,108940.0,108930.0,0.0302837]
[1756584816387,1.081304,108940.0,108930.0,0.1837637]